bitfinex/quotes_ETHUSD_20240711
["timestamp","ask_amount","ask_price","bid_price","bid_amount"]
[1720679030393,2.9668,3107.2,3105.5,1.21373786]
[1720679030570,2.3839,3107.0,3105.5,1.21373786]
[1720679032301,2.3839,3107.0,3105.4,5.01]
[1720679032491,2.3839,3107.0,3105.4,2.01]
[1720679032692,2.4223,3106.9,3106.0,0.838]
[1720679034881,3.1532723,3106.8,3106.0,0.838]
[1720679035095,2.4223,3106.8,3106.0,0.838]
[1720679035414,0.97320238,3106.7,3106.0,0.838]
[1720679035704,0.24223,3106.7,3106.0,0.838]
[1720679037278,2.3222,3106.6,3105.8,0.838]
[1720679038380,0.73098431,3106.5,3106.0,0.838]
[1720679038578,2.3222,3106.6,3106.0,0.838]
[1720679039106,0.73097423,3106.5,3106.0,0.838]
[1720679039303,2.3222,3106.6,3106.0,0.838]
[1720679039469,0.73097482,3106.5,3106.0,0.838]
[1720679039689,2.578643,3106.6,3106.0,0.838]
[1720679039889,0.73097498,3106.5,3106.0,0.838]
[1720679040112,2.578643,3106.6,3106.0,0.838]
[1720679040307,0.73097525,3106.5,3106.0,0.838]
[1720679040505,2.3222,3106.6,3106.0,0.838]
[1720679040695,0.73098222,3106.5,3106.0,0.838]
[1720679041016,2.3222,3106.6,3106.0,0.838]
[1720679041216,0.73095617,3106.5,3106.0,0.838]
[1720679041394,2.3222,3106.6,3106.0,0.838]
[1720679041601,0.73096365,3106.5,3106.0,0.838]
[1720679041793,2.3222,3106.6,3106.0,0.838]
[1720679042100,0.7309637,3106.5,3106.0,0.838]
[1720679042408,2.3222,3106.6,3106.0,0.838]
[1720679042607,0.73094975,3106.5,3106.0,0.838]
[1720679042806,2.3222,3106.6,3106.0,0.838]
[1720679043191,2.55442,3106.6,3106.0,0.838]
[1720679043822,2.55442,3106.6,3105.8,0.838]
[1720679044029,2.3222,3106.6,3105.8,0.838]
[1720679044413,2.3222,3106.6,3106.0,0.838]
[1720679049654,2.3222,3106.6,3105.6,3.0]
[1720679049655,2.3222,3106.6,3106.2,0.838]
[1720679051172,2.297,3107.0,3106.3,0.0643784]
[1720679051320,2.297,3107.0,3106.5,0.838]
[1720679051520,2.297,3107.0,3106.6,0.06437062]
[1720679052572,2.297,3107.0,3106.0,0.06437062]
[1720679052741,2.56040182,3107.0,3106.1,0.838]
[1720679052946,3.39840182,3107.0,3106.1,0.838]
[1720679053182,2.56040182,3107.0,3106.2,0.06437785]
[1720679053483,2.297,3107.0,3106.2,0.06437785]
[1720679053660,2.297,3107.0,3106.3,0.838]
[1720679054757,2.297,3107.0,3106.4,0.06437575]
[1720679054964,2.297,3107.0,3106.4,0.06437553]
[1720679055488,2.297,3107.0,3106.3,0.838]
[1720679056387,2.64420182,3107.0,3106.1,0.838]
[1720679056586,2.4796,3106.9,3105.9,0.838]
[1720679057684,2.4796,3106.9,3106.1,0.838]
[1720679058075,2.4796,3106.9,3105.9,0.838]
[1720679059184,2.4796,3106.9,3105.6,3.0]
[1720679059357,2.4487,3106.7,3105.8,0.838]
[1720679059990,2.4487,3106.7,3105.7,1.0063]
[1720679060283,2.4487,3106.7,3105.9,0.838]
[1720679064254,2.3245,3106.3,3105.4,0.838]
[1720679065877,2.3245,3106.3,3105.6,0.838]
[1720679067055,2.55695,3106.3,3105.6,0.838]
[1720679071309,2.3245,3106.3,3105.6,0.838]
[1720679073106,2.3245,3106.3,3105.8,0.838]
[1720679075808,2.3245,3106.3,3105.6,0.838]
[1720679077907,2.3245,3106.3,3105.3,0.06438894]
[1720679078227,2.3245,3106.3,3105.2,3.838]
[1720679078391,2.3642,3106.1,3105.3,0.3838]
[1720679078711,2.3642,3106.1,3105.2,0.838]
[1720679080581,2.3642,3106.1,3105.6,0.838]
[1720679088293,2.3642,3106.1,3105.0,0.0643893]
[1720679088489,2.3642,3106.1,3105.3,0.838]
[1720679088712,2.3642,3106.1,3105.1,1.37964893]
[1720679089409,2.3642,3106.1,3105.1,0.838]
[1720679092026,2.3642,3106.1,3104.7,3.06439538]
[1720679092212,2.3642,3106.1,3105.2,0.838]
[1720679092646,2.3642,3106.1,3104.7,3.06439543]
[1720679092825,2.3642,3106.1,3105.2,0.838]
[1720679093014,2.81802,3106.0,3105.2,0.838]
[1720679093543,2.4978,3106.0,3105.2,0.838]
[1720679093941,2.4978,3106.0,3104.7,3.06439543]
[1720679094257,2.4978,3106.0,3105.2,0.838]
[1720679095819,2.4978,3106.0,3105.4,0.838]
[1720679100029,2.4978,3106.0,3105.2,0.838]
[1720679100267,2.74758,3106.0,3105.2,0.838]
[1720679100642,2.74758,3106.0,3105.0,0.838]
[1720679101245,2.4951,3105.9,3104.9,0.838]
[1720679102955,0.73136149,3105.8,3104.9,0.838]
[1720679103135,3.02276149,3105.7,3104.9,0.838]
[1720679103332,0.73136149,3105.6,3104.9,0.838]
[1720679103536,0.73134947,3105.5,3104.9,0.838]
[1720679103765,0.73134947,3105.4,3104.9,0.838]
[1720679103947,0.73134947,3105.3,3104.9,0.838]
[1720679104149,0.73134947,3105.2,3105.1,0.838]
[1720679104335,2.2914,3105.7,3105.1,0.838]
[1720679104536,0.73133085,3105.6,3105.1,0.838]
[1720679104737,0.73133085,3105.5,3104.6,3.0]
[1720679104963,0.73133085,3105.4,3105.0,0.838]
[1720679105139,3.05953085,3105.3,3105.0,0.838]
[1720679105451,0.73133085,3105.2,3105.0,0.838]
[1720679105652,0.73133085,3105.2,3104.8,0.838]
[1720679106866,0.73149498,3105.1,3104.8,0.838]
[1720679107065,0.73149498,3105.0,3104.8,0.838]
[1720679107265,2.3282,3105.3,3104.5,7.063]
[1720679107448,0.73149031,3105.2,3104.6,0.838]
[1720679107773,0.73149031,3105.1,3104.6,0.838]
[1720679107963,3.22719031,3105.0,3104.5,7.063]
[1720679108281,0.73149031,3104.9,3104.5,7.901]
[1720679108439,0.73149031,3104.9,3104.5,0.838]
[1720679108643,0.73149031,3104.9,3104.1,3.0]
[1720679108844,2.4957,3104.8,3104.1,1.0063]
[1720679109047,0.73149031,3104.7,3104.1,0.838]
[1720679109950,0.73149031,3104.7,3104.0,7.063]
[1720679110271,2.4957,3104.8,3104.1,0.838]
[1720679110272,0.73181859,3104.6,3104.1,0.838]
[1720679110472,0.73181859,3104.5,3104.1,0.838]
[1720679110674,2.4957,3104.8,3104.1,0.838]
[1720679110878,0.73178555,3104.7,3104.1,0.838]
[1720679111185,0.73178555,3104.6,3104.1,1.6281]
[1720679111376,2.4957,3104.8,3104.1,1.6281]
[1720679111574,0.73176634,3104.7,3104.1,1.6281]
[1720679111887,0.73176634,3104.6,3104.1,1.6281]
[1720679112084,2.4957,3104.8,3104.1,1.6281]
[1720679112284,0.73177391,3104.7,3104.1,0.838]
[1720679112478,0.73177391,3104.6,3104.1,0.838]
[1720679112652,2.4957,3104.8,3104.1,0.838]
[1720679112853,0.731798,3104.7,3104.1,0.838]
[1720679113088,0.731798,3104.6,3104.1,0.838]
[1720679113252,0.73185111,3104.5,3104.1,0.838]
[1720679113453,2.74527,3104.8,3104.1,0.838]
[1720679113653,0.73185311,3104.7,3103.9,0.838]
[1720679113866,0.73185311,3104.6,3103.9,0.838]
[1720679114157,2.74527,3104.8,3103.9,0.838]
[1720679114359,0.73184549,3104.7,3103.9,0.838]
[1720679114668,2.74527,3104.8,3103.9,1.2218]
[1720679114868,0.73181547,3104.7,3103.9,1.2218]
[1720679115080,2.74527,3104.8,3103.9,1.2218]
[1720679115273,0.73181562,3104.7,3103.9,1.2218]
[1720679115584,2.4957,3104.8,3103.9,1.2218]
[1720679115955,0.73180358,3104.7,3104.1,0.838]
[1720679116188,2.4957,3104.8,3104.1,0.838]
[1720679116851,2.4957,3104.8,3104.2,0.06442064]
[1720679117053,2.4957,3104.8,3104.1,0.838]
[1720679117286,2.4957,3104.8,3103.9,0.3838]
[1720679117455,0.73186564,3104.7,3104.0,0.838]
[1720679117656,2.4957,3104.8,3104.0,0.838]
[1720679118455,2.4957,3104.8,3104.2,0.838]
[1720679119064,2.4957,3104.8,3104.0,0.838]
[1720679119996,0.73187419,3104.7,3104.0,0.838]
[1720679120203,2.4957,3104.8,3104.0,0.838]
[1720679122070,2.4957,3104.8,3104.0,0.90241858]
[1720679123001,2.4957,3104.8,3104.4,0.838]
[1720679123412,2.4957,3104.8,3104.2,0.838]
[1720679123595,2.4957,3104.8,3104.3,0.06441689]
[1720679124114,2.3385,3105.1,3104.4,0.838]
[1720679124270,2.3385,3105.4,3104.7,0.838]
[1720679124476,2.3385,3105.4,3104.8,0.06440505]
[1720679124806,2.3385,3105.4,3104.7,0.90240505]
[1720679125122,2.3385,3105.4,3104.7,1.21887556]
[1720679125278,2.3385,3105.4,3104.7,1.15447051]
[1720679126005,2.3385,3105.4,3104.5,3.1003]
[1720679126212,0.838,3105.4,3104.1,3.0]
[1720679126507,3.2229,3105.2,3104.2,0.838]
[1720679126679,0.73158046,3105.1,3104.2,0.838]
[1720679126885,3.2229,3105.2,3104.2,0.838]
[1720679127067,0.73170428,3105.1,3104.2,1.2218]
[1720679127268,0.73172008,3105.0,3104.2,1.2218]
[1720679127502,2.3569,3105.1,3104.2,1.2218]
[1720679128376,0.73169242,3105.0,3104.2,0.3838]
[1720679128576,0.838,3105.2,3103.9,0.3838]
[1720679128577,2.481,3104.9,3104.1,0.838]
[1720679129212,2.481,3104.9,3103.9,3.3838]
[1720679129424,2.3789,3104.7,3104.0,0.838]
[1720679129774,0.46897774,3105.5,3103.1,12.46]
[1720679129775,0.73192027,3104.6,3103.1,12.46]
[1720679129976,2.3789,3104.4,3103.0,7.063]
[1720679130200,2.3789,3104.2,3103.4,0.838]
[1720679130780,2.3789,3104.2,3103.1,0.7063]
[1720679131002,0.73214545,3104.1,3103.1,0.7063]
[1720679131205,2.3789,3104.2,3103.3,0.838]
[1720679131408,0.73216559,3104.1,3103.3,0.838]
[1720679131637,1.04334134,3104.0,3102.8,0.06443953]
[1720679131924,1.04334134,3104.0,3103.2,0.838]
[1720679131925,0.31110656,3104.0,3103.2,0.838]
[1720679132408,3.17988163,3103.9,3103.1,0.838]
[1720679132581,2.4476,3103.9,3102.5,2.015]
[1720679132784,2.4476,3103.9,3102.6,2.41564137]
[1720679133014,2.4476,3103.9,3102.7,0.44306414]
[1720679133199,2.4476,3103.9,3102.8,0.06444018]
[1720679135617,2.4476,3103.9,3102.6,0.06443997]
[1720679138249,2.4476,3103.9,3102.9,2.015]
[1720679138549,2.4087,3104.7,3103.1,2.391]
[1720679138741,0.24087,3104.6,3103.2,0.30997473]
[1720679138917,0.24087,3104.6,3103.3,0.0644311]
[1720679141345,0.73199781,3104.5,3103.3,0.0644311]
[1720679141547,2.74580398,3104.7,3103.3,0.0644311]
[1720679141748,0.73193666,3104.6,3103.3,0.0644311]
[1720679142050,0.34777406,3104.6,3103.4,0.33099747]
[1720679142344,0.73197101,3104.5,3103.5,0.06442686]
[1720679142566,0.34777406,3104.6,3103.5,0.06442686]
[1720679143169,2.74580398,3104.7,3103.5,0.06442686]
[1720679144322,0.73188436,3104.6,3103.5,0.06442686]
[1720679144523,2.74580398,3104.7,3103.5,0.06442686]
[1720679144848,2.4087,3104.7,3103.6,2.388]
[1720679145048,3.0,3105.1,3103.7,2.07941967]
[1720679145049,2.2537,3105.1,3103.7,2.07941967]
[1720679145282,2.2537,3105.1,3103.8,0.51115665]
[1720679145449,2.2537,3105.1,3103.8,3.51115665]
[1720679146759,2.2537,3105.1,3103.8,3.44674197]
[1720679146760,0.7316779,3105.0,3103.8,3.44674197]
[1720679146933,2.2537,3105.1,3103.8,0.44674197]
[1720679147136,2.2537,3105.1,3103.7,3.0]
[1720679147137,0.73172248,3105.0,3103.7,3.0]
[1720679147362,2.2537,3105.1,3103.6,2.388]
[1720679147569,0.73174418,3105.0,3103.6,2.388]
[1720679147729,0.73174418,3104.9,3103.6,2.388]
[1720679147931,0.73174418,3104.8,3103.6,2.388]
[1720679148130,2.2537,3105.1,3103.7,0.5388]
[1720679148475,0.73174401,3105.0,3103.7,3.5388]
[1720679148621,0.73174401,3104.9,3103.7,3.5388]
[1720679148828,0.73174401,3104.8,3103.7,3.5388]
[1720679149066,2.2537,3105.1,3103.7,3.5388]
[1720679149377,0.95711399,3105.0,3103.7,3.5388]
[1720679149532,0.73174399,3104.9,3103.7,3.5388]
[1720679149738,0.73174399,3104.8,3103.7,3.5388]
[1720679149938,0.22537,3105.0,3103.7,3.5388]
[1720679150140,0.73174433,3104.9,3103.7,3.5388]
[1720679150447,0.73174433,3104.8,3103.8,0.59268]
[1720679150646,0.73174433,3104.7,3103.8,0.59268]
[1720679150867,0.32108143,3104.9,3103.8,0.59268]
[1720679151049,0.7317431,3104.8,3103.8,0.59268]
[1720679151247,0.7317431,3104.7,3103.8,0.59268]
[1720679151449,0.32108143,3104.9,3103.8,0.59268]
[1720679151743,0.73174395,3104.8,3103.8,0.59268]
[1720679151946,2.2537,3105.1,3103.9,0.42369052]
[1720679152150,0.73169641,3105.0,3104.0,2.4072]
[1720679152347,2.2537,3105.1,3104.1,0.06441752]
[1720679152348,0.73169641,3104.9,3104.1,0.06441752]
[1720679152672,0.73165985,3104.8,3104.1,0.06441752]
[1720679152861,0.33709765,3105.3,3104.2,0.54716175]
[1720679153062,0.73165816,3105.2,3104.3,0.06441631]
[1720679153245,0.73165816,3105.1,3104.3,0.06441631]
[1720679153451,0.73165816,3105.1,3104.0,5.4072]
[1720679153452,0.73165816,3105.0,3104.0,5.47161632]
[1720679153669,0.33709765,3105.3,3104.0,5.47161632]
[1720679153969,0.73154742,3105.2,3104.0,5.47161632]
[1720679154171,0.33709765,3105.3,3104.1,0.58308843]
[1720679154468,0.7315866,3105.2,3104.1,3.58308843]
[1720679154670,0.7315866,3105.1,3104.1,3.58308843]
[1720679154844,0.7315866,3105.0,3104.1,3.58308843]
[1720679155171,0.7315866,3104.9,3104.1,3.58308843]
[1720679155375,0.33709765,3105.3,3104.2,0.59902884]
[1720679155564,0.73161685,3105.2,3104.2,0.59902884]
[1720679155874,0.73161685,3105.1,3104.1,3.0]
[1720679156058,0.73161685,3105.0,3104.0,5.47161065]
[1720679156373,0.73161685,3104.9,3104.0,5.47161065]
[1720679156561,0.73161685,3104.8,3104.0,5.47161065]
[1720679156764,0.33709765,3105.3,3104.0,5.47161065]
[1720679156947,0.73162289,3105.2,3104.1,0.58308787]
[1720679157274,0.73162289,3105.1,3104.1,3.58308787]
[1720679157578,0.61283742,3105.3,3104.1,3.58308787]
[1720679157752,0.73160812,3105.2,3104.1,3.64750182]
[1720679158073,0.73160812,3105.1,3104.1,3.58308787]
[1720679158248,0.73160812,3105.0,3104.2,0.59902879]
[1720679158455,0.73160812,3104.9,3104.2,0.59902879]
[1720679158666,0.61283742,3105.3,3104.2,0.59902879]
[1720679158872,0.73163905,3105.2,3104.2,0.59902879]
[1720679159196,0.73163905,3105.1,3104.3,0.06441397]
[1720679159351,0.73163905,3105.0,3104.4,2.4991]
[1720679159547,0.61283742,3105.3,3104.4,2.4991]
[1720679159792,0.73164145,3105.2,3104.4,2.4991]
[1720679160597,0.73164145,3105.2,3104.5,0.06441542]
[1720679160803,0.7315555,3105.1,3104.5,0.06441542]
[1720679160951,2.4203,3105.5,3104.5,0.32076696]
[1720679161147,0.73151581,3105.4,3104.5,0.25635154]
[1720679161373,0.73151581,3105.3,3104.5,0.25635154]
[1720679161698,0.73151581,3105.2,3104.5,0.25635154]
[1720679161847,0.33711979,3105.7,3104.5,0.25635154]
[1720679162053,0.73146345,3105.6,3104.6,0.27554515]
[1720679162304,0.73146345,3105.5,3104.6,0.27554515]
[1720679162452,0.73146345,3105.4,3104.4,2.4991]
[1720679162651,0.73146345,3105.3,3104.4,2.4991]
[1720679162879,0.73146345,3105.2,3104.4,2.4991]
[1720679163085,0.33711979,3105.7,3104.4,2.4991]
[1720679163291,0.73153759,3105.6,3104.4,2.4991]
[1720679163586,0.73152947,3105.5,3104.4,2.74901]
[1720679163883,0.73152933,3105.4,3104.5,3.0]
[1720679164083,0.73152933,3105.3,3104.5,3.0]
[1720679164287,0.33711979,3105.7,3104.5,3.0]
[1720679164451,0.73154451,3105.6,3104.6,0.06441011]
[1720679164648,0.73154451,3105.5,3104.6,0.64575212]
[1720679164851,0.73154451,3105.4,3104.6,0.64575212]
[1720679165082,0.33711979,3105.7,3104.6,0.64575212]
[1720679165083,0.33711979,3105.7,3104.6,0.06441011]
[1720679165307,0.73148236,3105.6,3104.4,2.74901]
[1720679165480,0.73148236,3105.5,3104.4,2.74901]
[1720679165652,0.73148236,3105.4,3104.4,2.74901]
[1720679165853,0.73153758,3105.3,3104.4,2.4991]
[1720679166173,0.73153758,3105.2,3104.4,2.4991]
[1720679166504,0.33711979,3105.7,3104.4,2.4991]
[1720679166670,0.73155931,3105.6,3104.4,2.4991]
[1720679166864,0.73155935,3105.5,3104.4,2.4991]
[1720679167078,0.73155935,3105.4,3104.4,2.4991]
[1720679167279,0.73155935,3105.3,3104.4,2.4991]
[1720679167589,0.33711979,3105.7,3104.4,2.4991]
[1720679167590,0.73155935,3105.2,3104.4,3.04901]
[1720679167788,0.33711979,3105.7,3104.4,3.04901]
[1720679167973,0.73151266,3105.6,3104.4,3.04901]
[1720679168174,0.73151266,3105.5,3104.4,3.04901]
[1720679168354,0.73151266,3105.4,3104.4,3.04901]
[1720679168555,0.73151266,3105.3,3104.5,0.304901]
[1720679168776,0.33711979,3105.7,3104.5,0.304901]
[1720679168967,0.73151375,3105.6,3104.5,0.304901]
[1720679169167,0.73151375,3105.5,3104.5,0.304901]
[1720679169373,0.73151375,3105.4,3104.5,0.304901]
[1720679169590,0.33711979,3105.7,3104.6,0.3353911]
[1720679169800,0.73145014,3105.6,3104.5,2.4864]
[1720679169957,0.33711979,3105.7,3104.5,2.4864]
[1720679170159,0.73140259,3105.6,3104.5,2.4864]
[1720679170353,0.73149977,3105.5,3104.5,2.4864]
[1720679170657,0.33711979,3105.7,3104.5,2.4864]
[1720679170860,0.73144977,3105.6,3104.6,0.303631]
[1720679171089,0.73144977,3105.5,3104.6,0.303631]
[1720679171295,0.33711979,3105.7,3104.6,0.303631]
[1720679171296,0.7314728,3105.4,3104.6,0.303631]
[1720679171460,0.33711979,3105.7,3104.6,0.303631]
[1720679171659,0.73147495,3105.6,3104.6,0.303631]
[1720679171861,0.73147495,3105.5,3104.6,0.303631]
[1720679172058,0.73148255,3105.4,3104.6,0.303631]
[1720679172278,0.92008177,3105.7,3104.6,0.303631]
[1720679172479,0.73146468,3105.6,3104.6,0.303631]
[1720679172693,0.73146468,3105.5,3104.6,0.303631]
[1720679172880,0.33711979,3105.7,3104.6,0.303631]
[1720679173193,0.73144073,3105.6,3104.6,0.303631]
[1720679173404,0.33711979,3105.7,3104.6,3.303631]
[1720679173565,0.73143376,3105.6,3104.8,2.34]
[1720679173765,0.33711979,3105.7,3105.0,2.3196]
[1720679176192,3.00368971,3105.6,3104.6,5.3196]
[1720679176361,0.33408095,3105.5,3104.6,2.3196]
[1720679177466,0.33711979,3105.7,3104.6,2.3196]
[1720679178366,0.73141947,3105.6,3104.6,2.3196]
[1720679178709,0.33711979,3105.7,3104.6,2.3196]
[1720679178913,0.73142003,3105.6,3104.6,2.3196]
[1720679179192,0.33711979,3105.7,3104.6,2.3196]
[1720679179396,0.73142014,3105.6,3104.6,2.55156]
[1720679179593,0.60709177,3105.7,3104.7,3.0]
[1720679179798,0.73143935,3105.6,3104.7,3.0]
[1720679179985,0.73143935,3105.6,3104.6,2.3196]
[1720679180721,0.73146776,3105.5,3104.6,2.3196]
[1720679181005,0.60709177,3105.7,3104.7,0.06440944]
[1720679181179,0.73145327,3105.6,3104.7,3.0]
[1720679181380,0.73145327,3105.5,3104.7,3.0]
[1720679181679,0.60709177,3105.7,3104.7,3.0]
[1720679181885,0.73143012,3105.6,3104.7,3.0]
[1720679182068,0.73143012,3105.5,3104.8,0.555156]
[1720679182268,0.60709177,3105.7,3104.8,0.6195599]
[1720679182568,0.73142834,3105.6,3104.8,0.6195599]
[1720679182770,0.73142834,3105.5,3104.8,0.6195599]
[1720679183079,0.73142834,3105.4,3104.8,0.555156]
[1720679183279,0.60709177,3105.7,3104.8,0.555156]
[1720679183474,0.73142452,3105.6,3104.8,0.555156]
[1720679183679,0.73142452,3105.5,3104.8,0.555156]
[1720679183889,0.60709177,3105.7,3104.8,0.555156]
[1720679184093,0.73141445,3105.6,3104.7,3.0]
[1720679184437,0.73141445,3105.5,3104.7,3.0]
[1720679184595,0.73141445,3105.4,3104.7,3.0]
[1720679184781,0.73141445,3105.3,3104.7,3.0]
[1720679184980,0.60709177,3105.7,3104.7,3.0]
[1720679185179,0.73140765,3105.6,3104.7,3.0]
[1720679185381,0.73140765,3105.5,3104.7,3.0]
[1720679185579,0.73140765,3105.4,3104.7,3.0]
[1720679185787,0.73140765,3105.3,3104.7,3.0]
[1720679185985,0.60709177,3105.7,3104.7,3.0]
[1720679186225,0.73143209,3105.6,3104.7,3.0]
[1720679186536,0.73143209,3105.5,3104.7,3.555156]
[1720679186736,0.73143209,3105.4,3104.7,3.555156]
[1720679186907,0.73143209,3105.3,3104.7,3.0]
[1720679187091,0.73143209,3105.2,3104.7,3.0]
[1720679187432,0.60709177,3105.7,3104.7,3.0]
[1720679187602,0.73144489,3105.6,3104.7,3.0]
[1720679187804,0.73144489,3105.5,3104.7,3.0]
[1720679188001,0.73144489,3105.4,3104.7,3.0]
[1720679188321,0.73144489,3105.3,3104.7,3.0]
[1720679188499,0.73144489,3105.2,3104.7,3.0]
[1720679188703,0.73144489,3105.1,3104.7,3.0]
[1720679188908,0.60709177,3105.7,3104.7,3.0]
[1720679189107,0.60709177,3105.7,3104.6,2.55156]
[1720679189108,0.73144241,3105.6,3104.6,2.3196]
[1720679189433,0.73144241,3105.5,3104.6,2.3196]
[1720679189647,0.73144241,3105.4,3104.6,2.3196]
[1720679189791,0.73144241,3105.3,3104.6,2.3196]
[1720679190023,0.73144241,3105.2,3104.6,2.3196]
[1720679190215,0.73144241,3105.1,3104.6,2.3196]
[1720679190399,0.73144241,3105.0,3104.6,2.3196]
[1720679190602,0.60709177,3105.7,3104.6,2.3196]
[1720679191042,0.73148706,3105.6,3104.6,2.3196]
[1720679191220,0.73148706,3105.5,3104.6,2.3196]
[1720679191415,0.73148706,3105.4,3104.6,2.3196]
[1720679191726,0.73148706,3105.3,3104.6,2.55156]
[1720679191894,0.73148706,3105.2,3104.6,2.55156]
[1720679192250,0.73148706,3105.1,3104.6,2.55156]
[1720679192395,0.73148706,3105.0,3104.6,2.55156]
[1720679192733,0.73148706,3104.9,3104.6,2.55156]
[1720679192929,0.60709177,3105.7,3104.6,2.55156]
[1720679193144,0.73148883,3105.6,3104.6,2.3196]
[1720679193432,0.73148883,3105.5,3104.6,2.3196]
[1720679193606,0.73148883,3105.4,3104.6,2.3196]
[1720679193821,0.73148883,3105.3,3104.6,2.3196]
[1720679194032,0.73148883,3105.2,3104.6,2.3196]
[1720679194361,0.60709177,3105.7,3104.6,2.3196]
[1720679194362,0.73149579,3105.1,3104.6,2.3196]
[1720679194683,0.73149579,3105.0,3104.6,2.3196]
[1720679194962,0.73149579,3104.9,3104.6,2.55156]
[1720679195111,0.60709177,3105.7,3104.6,2.55156]
[1720679195312,0.73148737,3105.6,3104.6,2.3196]
[1720679195511,0.73148737,3105.5,3104.6,2.3196]
[1720679195752,0.73148737,3105.4,3104.6,2.3196]
[1720679195923,0.73148737,3105.3,3104.6,2.3196]
[1720679196123,0.73148737,3105.2,3104.6,2.3196]
[1720679196453,0.73148737,3105.1,3104.6,2.55156]
[1720679196657,0.73148737,3105.0,3104.6,2.55156]
[1720679196825,0.73148737,3104.9,3104.6,2.3196]
[1720679197011,0.60709177,3105.7,3104.6,2.3196]
[1720679197212,0.73145371,3105.6,3104.6,2.3196]
[1720679197457,0.73145371,3105.5,3104.6,2.3196]
[1720679197613,0.73145371,3105.4,3104.6,2.3196]
[1720679197813,0.60709177,3105.7,3104.6,2.3196]
[1720679198035,0.73145324,3105.6,3104.6,2.3196]
[1720679198220,0.73145324,3105.5,3104.6,2.3196]
[1720679198425,0.60709177,3105.7,3104.6,2.3196]
[1720679198426,0.73145324,3105.4,3104.6,2.3196]
[1720679198625,0.73145324,3105.3,3104.7,0.839]
[1720679198837,0.73145324,3105.2,3104.7,0.839]
[1720679199041,0.73145324,3105.1,3104.7,0.839]
[1720679199210,0.73145324,3105.0,3104.7,0.839]
[1720679199414,0.73145324,3104.9,3104.7,0.839]
[1720679199637,0.73145324,3104.8,3104.7,0.839]
[1720679200747,0.73145324,3104.8,3104.7,3.839]
[1720679201256,0.60709177,3105.7,3104.7,3.839]
[1720679201442,0.73144908,3105.6,3104.7,3.839]
[1720679201645,0.73144908,3105.5,3104.7,0.839]
[1720679201957,0.73144908,3105.4,3104.7,0.839]
[1720679202121,0.73144908,3105.3,3104.7,0.839]
[1720679202317,0.73144908,3105.2,3104.7,0.839]
[1720679202561,0.73144908,3105.1,3104.7,0.839]
[1720679202751,0.73144908,3105.0,3104.7,0.839]
[1720679203058,0.73144908,3104.9,3104.3,3.0]
[1720679203270,0.30454491,3104.8,3104.1,2.2944]
[1720679203422,0.73144908,3104.7,3104.1,2.2944]
[1720679204736,0.30454491,3104.8,3104.1,2.2944]
[1720679204941,0.73185858,3104.7,3104.1,2.2944]
[1720679205151,0.73185858,3104.6,3104.1,2.2944]
[1720679205448,0.73186274,3104.5,3104.1,2.2944]
[1720679205753,0.73186274,3104.4,3104.1,2.2944]
[1720679205931,0.73186274,3104.3,3104.1,2.2944]
[1720679206132,0.73186274,3104.2,3104.1,2.2944]
[1720679206326,0.73186274,3104.7,3104.1,2.2944]
[1720679206533,0.73186274,3104.6,3104.1,2.2944]
[1720679206734,0.73186274,3104.5,3104.1,2.2944]
[1720679206932,0.73186274,3104.4,3104.1,2.2944]
[1720679207143,0.73186274,3104.3,3104.1,2.60774]
[1720679207339,0.73186274,3104.2,3104.1,2.60774]
[1720679208353,2.314,3105.0,3104.1,2.60774]
[1720679208653,2.314,3105.0,3104.2,0.839]
[1720679208870,0.73179527,3104.9,3104.2,0.839]
[1720679209090,0.73179527,3104.8,3104.2,0.839]
[1720679209241,0.73179527,3104.7,3104.4,0.839]
[1720679209442,0.73179527,3104.6,3104.4,0.839]
[1720679209653,0.73179527,3104.5,3104.2,0.839]
[1720679209850,0.33720734,3105.2,3104.5,2.4752]
[1720679210049,0.73168559,3105.1,3104.8,0.839]
[1720679210251,2.4843,3105.6,3104.8,0.839]
[1720679210252,0.73168559,3105.0,3104.8,0.839]
[1720679210454,0.26997198,3105.7,3104.8,0.839]
[1720679210673,0.7314847,3105.6,3105.0,0.839]
[1720679210871,0.7314847,3105.5,3105.0,0.839]
[1720679211075,0.7314847,3105.4,3105.0,0.839]
[1720679211271,0.7314847,3105.3,3105.0,0.839]
[1720679211456,0.7314847,3105.2,3105.0,0.839]
[1720679211651,0.7314639,3105.1,3105.0,0.839]
[1720679212779,0.33715977,3105.7,3104.7,2.3041]
[1720679212987,0.33715977,3105.7,3104.8,0.59481433]
[1720679212988,0.73131948,3105.6,3104.8,0.59481433]
[1720679213207,0.73131948,3105.5,3104.8,0.59481433]
[1720679213497,0.73131948,3105.4,3104.8,0.59481433]
[1720679213692,0.33715977,3105.7,3104.8,0.59481433]
[1720679213841,0.73130778,3105.6,3105.0,2.3041]
[1720679214041,0.73130778,3105.5,3105.0,2.3041]
[1720679214383,0.73130778,3105.4,3105.0,2.3041]
[1720679214564,0.73130778,3105.3,3105.0,2.3041]
[1720679214749,0.73130778,3105.2,3104.5,5.4888]
[1720679215082,0.7314923,3105.1,3104.5,6.94528]
[1720679215267,0.55,3105.6,3104.5,6.94528]
[1720679215578,0.73147971,3105.5,3104.5,6.94528]
[1720679215878,0.73147971,3105.4,3104.5,6.94528]
[1720679216051,2.65635977,3105.7,3104.5,6.94528]
[1720679216052,0.73147971,3105.3,3104.7,2.4999]
[1720679216252,0.73147971,3105.2,3104.8,0.25643135]
[1720679216453,0.33715977,3105.7,3104.8,0.25643135]
[1720679216661,0.7313852,3105.6,3104.8,0.25643135]
[1720679216972,0.7313852,3105.5,3104.8,0.25643135]
[1720679217176,0.33715977,3105.7,3104.9,2.60203313]
[1720679217177,0.7313852,3105.4,3104.9,2.60203313]